Cogmind - Beta 17 @@@ ROGUE MODE // 2026.06.29 @ 07:21:41 Player: kareds Result: Destroyed by Cetus Guard with Advanced KE Penetrator Performance ------------- Evolutions (5) 2500 Regions Visited (11) 2200 Robots Destroyed (85) 425 Value Destroyed (2819) 2819 Prototype IDs (10) 200 Alien Tech Used (0) 0 Bonus (640) 640 TOTAL SCORE: 8784 Bonus ------- High Alert Combat Kills 98 Follower Combat Kills 603 Friendly Fire -61 Cogmind --------- Core Integrity 0/1000 Matter 290/300 Energy 100/100 System Corruption 6% Temperature Cool (9) Movement Core (50) Location -5/Cetus Parts ------- > --- POWER (1) -------- (None) > --- PROPULSION (6) --- (None) > --- UTILITY (8) ------ Visual Processing Unit Improved Signal Interpreter Improved Corruption Screen > --- WEAPON (2) ------- Lance > --- INVENTORY (5) ---- Light Angular Momentum Engine Neutrino Core Advanced Weight Redist. System Mini Drone Bay (0/3) Beamcaster Peak State ------------ > --- POWER ------------ Neutrino Core > --- PROPULSION ------- Improved Medium Treads Nuclear Pulse Thruster Nuclear Pulse Thruster Biomechanical Wings Nuclear Pulse Array > --- UTILITY ---------- Improved Sensor Array Improved Signal Interpreter Advanced Melee Analysis Suite Advanced Melee Analysis Suite Layered Light Armor Plating Hacking Suite System Shield System Shield > --- WEAPON ----------- Greatsword > --- INVENTORY -------- Light Angular Momentum Engine Light Angular Momentum Engine Advanced Weight Redist. System Advanced Terrain Scanner Advanced Plasma Cannon [Rating: 78] Favorites ----------- Power Improved Deuterium Engine Engine Improved Deuterium Engine Power Core Light Nuclear Core Propulsion Gravmag System Treads Improved Medium Treads Leg Aluminum Leg Wheel Armored Wheel Hover Unit Gravmag System Flight Unit Nuclear Pulse Thruster Utility System Shield Device Improved Sensor Array Storage Medium Storage Unit Processor Improved Signal Interpreter Hackware System Shield Protection Layered Light Armor Plating Weapon Advanced Beam Rifle Energy Gun Advanced Beam Rifle Energy Cannon Plasma Cannon Ballistic Gun Heavy Assault Rifle Ballistic Cannon Advanced Assault Cannon Launcher Heavy Rocket Launcher Slashing Weapon Katana Piercing Weapon Lance Build | -11 -10 -9 -9 -8 -7 -6 -6 -6 -5 -5 -5 ------- Run | Yrd Mat Mat Min Mat Fac Fac Was Fac Fac Ext Cet Slots Evolved 10 | . . 2 . 2 2 2 . . 2 . . Power . | . . . . . . . . . . . . Propulsion 4 | . . . . 2 . . . . 2 . . Utility 6 | . . 2 . . 2 2 . . . . . Weapon . | . . . . . . . . . . . . Parts Attached 138 | 7 4 15 1 22 34 16 2 22 11 4 . Power 17 | 1 . 3 . 2 5 1 . 3 2 . . Engine 10 | 1 . 2 . . 3 1 . 3 . . . Core 7 | . . 1 . 2 2 . . . 2 . . Reactor . | . . . . . . . . . . . . Propulsion 50 | 2 2 3 1 11 11 5 2 7 5 1 . Treads 7 | 2 . 1 . . 1 . 1 1 1 . . Leg 20 | . 2 1 . 9 4 1 1 1 . 1 . Wheel 3 | . . . . . 3 . . . . . . Hover 9 | . . 1 1 2 3 2 . . . . . Flight 11 | . . . . . . 2 . 5 4 . . Utility 45 | 2 . 4 . 6 12 7 . 8 3 3 . Device 13 | 1 . 2 . 1 4 2 . 1 1 1 . Storage 2 | 1 . . . 1 . . . . . . . Processor 13 | . . 1 . . 3 2 . 3 2 2 . Hackware 7 | . . . . . 2 2 . 3 . . . Protection 10 | . . 1 . 4 3 1 . 1 . . . Artifact . | . . . . . . . . . . . . Weapon 26 | 2 2 5 . 3 6 3 . 4 1 . . Energy Gun 9 | 2 1 . . 2 3 1 . . . . . Energy Cannon 6 | . 1 2 . 1 1 1 . . . . . Ballistic Gun 3 | . . 3 . . . . . . . . . Ballistic Cannon 1 | . . . . . 1 . . . . . . Launcher 1 | . . . . . 1 . . . . . . Special Weapon . | . . . . . . . . . . . . Impact Weapon . | . . . . . . . . . . . . Slashing Weapon 5 | . . . . . . 1 . 4 . . . Piercing Weapon 1 | . . . . . . . . . 1 . . Special Melee Weapon . | . . . . . . . . . . . . Unidentified Prototypes 5 | . . 2 . . 1 1 . 1 . . . Parts Lost 51 | . . . 1 10 9 4 . 10 6 8 3 Power 6 | . . . . 2 1 . . 2 . 1 . Propulsion 25 | . . . 1 5 4 3 . 4 3 4 1 Utility 14 | . . . . 2 2 . . 3 2 3 2 Weapon 6 | . . . . 1 2 1 . 1 1 . . Highest Loss Streak 8 | . . . 1 4 4 3 . 7 5 8 3 To Critical Strikes 1 | . . . . . . . . . . 1 . Average Backups 6 | 2 5 7 7 9 9 3 5 4 4 3 5 Power . | . 1 . 1 . . . 1 . 1 1 2 Propulsion . | 1 2 2 2 . . . 1 1 . . . Utility 5 | . 2 4 4 8 7 2 2 2 1 1 2 Weapon . | . . . . . 1 . . . . . 1 Tool/Special . | . . . . . . . . . . . . Unused Backups 19 | . . 6 . . 7 . 1 . 3 . 2 Power 3 | . . . . . 1 . . . 1 . 1 Propulsion 3 | . . 2 . . . . . . 1 . . Utility 8 | . . 2 . . 6 . . . . . . Weapon 5 | . . 2 . . . . 1 . 1 . 1 Tool/Special . | . . . . . . . . . . . . Average Slot Usage (%) 87 | . 100 99 98 94 92 85 88 80 86 54 30 Engine 4 | . 14 9 . . 4 5 6 4 1 . . Core 2 | . . 1 11 7 2 . . . 3 2 . Treads 3 | . 9 6 5 . 1 . 1 5 7 5 . Leg 8 | . 18 13 . 15 11 1 7 . . 1 1 Wheel 3 | . . . . . 7 . . . . . . Hover 5 | . . 1 15 18 4 12 13 7 . . . Flight 2 | . . . . . . 2 . 5 19 5 . Device 9 | . 14 21 22 11 10 8 13 4 4 4 . Storage 5 | . 14 11 11 9 6 . . . . . . Processor 10 | . . 9 . . 7 13 20 21 17 16 20 Hackware 10 | . . . . . 9 24 20 16 16 8 2 Protection 6 | . . 1 11 15 9 3 . 4 5 2 . Energy Gun 5 | . 20 . . 5 8 3 . . . . . Energy Cannon 2 | . 7 7 . . 3 . . . . . . Ballistic Gun 2 | . . 14 22 9 . . . . . . . Slashing Weapon 1 | . . . . . . 5 6 7 4 . . Peak Build Rating 78 | 7 8 22 22 31 48 54 57 66 78 69 30 Average Rating 40 | 5 7 16 21 26 42 44 52 57 73 43 22 On Entrance 30 | . 7 8 22 22 31 16 49 57 62 58 30 Avg Prop Armor Cover (%) 10 | . . 5 3 6 5 7 16 18 11 20 27 Naked Turns . | . . . . . . . . . . . . Heaviest Build 45 | 15 16 25 25 39 45 21 13 18 24 15 3 Greatest Support 70 | 40 40 29 29 53 60 26 33 70 31 17 3 Greatest Overweight (x) 6 | . 1 1 2 1 6 . 4 1 . 3 . Average Overweight (x) . | . . . . . . . . . . . . Largest Inventory Capacity 10 | 8 8 8 8 10 10 5 5 5 5 5 5 Average Capacity 7 | 7 8 8 8 9 9 5 5 5 5 5 5 Most Carried 10 | 3 7 8 8 10 10 5 5 5 5 5 5 Average Carried 7 | 2 5 7 7 9 9 3 4 4 4 3 5 Final Capacity 10 | 8 8 8 8 10 5 5 5 5 5 5 5 Final Carried 10 | 3 7 8 7 10 5 5 5 4 3 5 5 Class Distribution -------------------- 33% | Hacker-Mutant 25% | Mutant 22% | Scavenger-Mutant 17% | Hacker-Gladiator Dominant Class ---------------- Mutant | -10/Materials Scavenger-Mutant | -9/Materials Mutant | -9/Mines Mutant | -8/Materials Hacker-Mutant | -7/Factory Hacker-Mutant | -6/Factory Hacker-Mutant | -6/Waste Hacker-Gladiator | -6/Factory Hacker-Gladiator | -5/Factory Mutant | -5/Extension Mutant | -5/Cetus Resources | -11 -10 -9 -9 -8 -7 -6 -6 -6 -5 -5 -5 ----------- Run | Yrd Mat Mat Min Mat Fac Fac Was Fac Fac Ext Cet Matter Collected 2185 | 270 35 236 52 554 398 66 196 283 95 . . Remotely . | . . . . . . . . . . . . Salvage Created 3143 | 48 141 395 17 678 604 174 . 523 529 34 . Parts 182 | 1 13 32 1 27 36 13 . 25 31 3 . Haulers Intercepted 4 | . . . . 1 1 . . 1 1 . . Recyclers Shooed 1 | . . 1 . . . . . . . . . Parts Field Recycled . | . . . . . . . . . . . . Retrieved Matter . | . . . . . . . . . . . . Parts Self-Destructed . | . . . . . . . . . . . . Prevented . | . . . . . . . . . . . . Parts Restored . | . . . . . . . . . . . . Kills | -11 -10 -9 -9 -8 -7 -6 -6 -6 -5 -5 -5 ------- Run | Yrd Mat Mat Min Mat Fac Fac Was Fac Fac Ext Cet Combat Hostiles Destroyed 55 | . 2 13 1 11 14 3 . 5 6 . . Melee 14 | . . . . . . 3 . 5 6 . . Guns 29 | . 2 12 1 11 3 . . . . . . Cannons 7 | . . 1 . . 6 . . . . . . AOE 4 | . . . . . 4 . . . . . . Classes Destroyed 14 | 1 4 3 . 3 3 . . . . . . Worker 3 | . 1 . . . . . . 1 1 . . Builder 4 | . . . . . 2 . . 2 . . . Tunneler 4 | 2 . . . . . 1 . . 1 . . Hauler 4 | . . . . 1 1 . . 1 1 . . Recycler 2 | . . 1 . 1 . . . . . . . Operator 6 | . 1 1 . . 2 . . 1 1 . . Watcher 7 | . 1 1 . . . . . 2 2 1 . Swarmer 16 | . . 9 1 . 4 . . . 2 . . Grunt 20 | . 2 3 . 7 3 1 . 4 . . . Brawler 1 | . . . . . 1 . . . . . . Duelist 2 | . . . . 1 1 . . . . . . Sentry 4 | . . 1 . 1 1 . . . 1 . . Hunter 2 | . . . . 2 . . . . . . . Programmer 10 | . . . . . 4 2 . 1 3 . . Best Kill Streak 9 | 2 2 9 1 3 6 2 . 5 4 1 . Combat Bots Only 5 | . 2 5 1 3 4 2 . 2 3 . . Max Kills in Single Turn 3 | 1 2 2 1 1 3 1 . 1 1 1 . Gunslinging 1 | . . 1 . . . . . . . . . Exploded 3 | . . . . . 3 . . . . . . Melee 1 | . . . . . . 1 . 1 1 . . Uniques/NPCs Destroyed . | . . . . . . . . . . . . Combat | -11 -10 -9 -9 -8 -7 -6 -6 -6 -5 -5 -5 -------- Run | Yrd Mat Mat Min Mat Fac Fac Was Fac Fac Ext Cet Hostile Shots Fired 788 | . 31 77 5 115 196 48 . 130 82 82 22 Missed 286 | . 8 25 . 26 73 20 . 52 35 37 10 Hits 502 | . 23 52 5 89 123 28 . 78 47 45 12 Melee 4 | . . . . 1 3 . . . . . . Projectile 498 | . 23 52 5 88 120 28 . 78 47 45 12 Critical Strikes 15 | . . . . 4 2 2 . . 5 2 . Actively Blocked 1 | . . . . 1 . . . . . . . Damage Taken 8499 | . 290 429 40 1445 1798 449 . 1572 933 1221 322 Core 2033 | . 36 53 . 213 178 143 . 396 110 654 250 Absorbed by Shields . | . . . . . . . . . . . . Redirected to Shielding 135 | . . . . 22 7 . . 106 . . . Regen/Repaired (Parts) 130 | . . . . . . . 42 88 . . . Core Remaining (%) 73 | 100 85 . 86 61 74 . . 36 . . . Volleys Fired 194 | 4 19 33 3 73 62 . . . . . . Largest 2 | 2 2 2 2 2 2 . . . . . . Hottest 149 | 100 110 136 46 98 149 . . . . . . Shots Fired 342 | 8 38 66 6 118 106 . . . . . . Gun 281 | 8 36 50 6 118 63 . . . . . . Cannon 59 | . 2 16 . . 41 . . . . . . Launcher 2 | . . . . . 2 . . . . . . Special . | . . . . . . . . . . . . Kinetic 141 | . . 50 6 76 9 . . . . . . Thermal 199 | 8 38 16 . 42 95 . . . . . . Explosive 2 | . . . . . 2 . . . . . . Electromagnetic . | . . . . . . . . . . . . Robot Hit Streak 10 | 3 3 6 1 8 10 . . . . . . Robot Miss Streak 4 | 2 3 4 3 3 3 . . . . . . Penetration Max . | . . . . . . . . . . . . Secondary Targets 5 | . . 3 . 2 . . . . . . . Max Gunslinging Chain 1 | . . 1 . 1 . . . . . . . Shots Hit Robots 274 | 5 19 37 2 77 66 8 . 20 38 1 1 Core Hits 121 | 2 10 16 1 30 31 6 . 10 14 1 . Critical Kills 1 | . . 1 . . . . . . . . . Critical Parts Destroyed . | . . . . . . . . . . . . Critical Strikes 15 | . 1 1 . 3 1 . . 1 8 . . Burn 5 | . 1 . . 3 1 . . . . . . Destroy 1 | . . 1 . . . . . . . . . Sever 9 | . . . . . . . . 1 8 . . Melee Attacks 134 | . . . . . . 26 . 37 45 12 14 Impact . | . . . . . . . . . . . . Slashing 105 | . . . . . . 26 . 37 42 . . Piercing 29 | . . . . . . . . . 3 12 14 Sneak Attacks 11 | . . . . . . 1 . 4 6 . . Combat Hostiles 1 | . . . . . . . . . 1 . . Follow-up Attacks . | . . . . . . . . . . . . Damage Inflicted 8699 | 61 266 662 25 1269 2022 275 . 1474 2492 116 37 Guns 2939 | 61 262 458 25 1269 864 . . . . . . Cannons 1006 | . . 204 . . 802 . . . . . . Explosions 559 | . . . . . 355 . . 143 . 61 . Melee 4190 | . . . . . . 275 . 1331 2492 55 37 Ramming 5 | . 4 . . . 1 . . . . . . Kinetic 1475 | . . 458 25 757 235 . . . . . . Thermal 2531 | 61 262 204 . 512 1431 . . . . 61 . Explosive 498 | . . . . . 355 . . 143 . . . Electromagnetic . | . . . . . . . . . . . . Impact . | . . . . . . . . . . . . Slashing 3939 | . . . . . . 275 . 1331 2333 . . Piercing 251 | . . . . . . . . . 159 55 37 Highest Corruption 6 | . . . . . 5 1 1 1 6 6 6 Average Corruption 2 | . . . . . 3 1 1 1 3 6 6 Corruption Purged . | . . . . . . . . . . . . Corruption Blocked . | . . . . . . . . . . . . Effects 56 | . . . . . 36 . 1 9 2 7 1 Message Errors 19 | . . . . . 16 . . 1 . 2 . Matter Fused 13 | . . . . . 6 . . 4 1 1 1 Heat Flow Errors 4 | . . . . . 2 . . 2 . . . Energy Discharges 6 | . . . . . 4 . . 2 . . . Parts Rejected 1 | . . . . . 1 . . . . . . Data Loss (minor) 8 | . . . . . 5 . . . 1 2 . Data Loss (major) 2 | . . . . . . . . . . 2 . Alerts 1 | . . . . . . . 1 . . . . Weapon Failures 2 | . . . . . 2 . . . . . . Overload Shots . | . . . . . . . . . . . . Overflow Damage 441 | . . 11 . . 19 . . 329 82 . . Projectiles 30 | . . 11 . . 19 . . . . . . Explosions 12 | . . . . . . . . 12 . . . Melee 399 | . . . . . . . . 317 82 . . Knockbacks 1 | . . . . . 1 . . . . . . Impact . | . . . . . . . . . . . . Kinetic 1 | . . . . . 1 . . . . . . Secondary . | . . . . . . . . . . . . Self-Inflicted Damage 179 | . . . . . . . . 71 . 108 . Shots 2 | . . . . . . . . 1 . 1 . Rammed 2 | . . 1 . . 1 . . . . . . Targets Rammed 3 | . 1 1 . . 1 . . . . . . Kicked 1 | . 1 . . . . . . . . . . Crushed . | . . . . . . . . . . . . Highest Temperature 489 | 117 303 207 . 489 240 1 . 176 8 . . Average Temperature 114 | 49 92 96 . 173 68 1 . 74 8 . . Received Heat Transfer 2640 | . 135 12 . 747 705 177 . 585 111 123 45 Effects 4 | . . . . 4 . . . . . . . Shutdowns 1 | . . . . 1 . . . . . . . Energy Bleed 1 | . . . . 1 . . . . . . . Short Circuit 2 | . . . . 2 . . . . . . . Siege Activations . | . . . . . . . . . . . . Martial Activations . | . . . . . . . . . . . . Shielding Activations . | . . . . . . . . . . . . Robots Disrupted . | . . . . . . . . . . . . Combat Hostiles . | . . . . . . . . . . . . Robots Corrupted . | . . . . . . . . . . . . Combat Hostiles . | . . . . . . . . . . . . Parts Fried . | . . . . . . . . . . . . Impact Corruptions . | . . . . . . . . . . . . Robots Melted 1 | . . . . . 1 . . . . . . Combat Hostiles 1 | . . . . . 1 . . . . . . Parts Melted 12 | 1 . . . 2 9 . . . . . . Heat Transferred 5118 | 185 851 370 . 1147 2515 . . . . 50 . Parts Sabotaged . | . . . . . . . . . . . . Parts Stolen . | . . . . . . . . . . . . Parts Stripped . | . . . . . . . . . . . . Power Chain Reactions . | . . . . . . . . . . . . Alert | -11 -10 -9 -9 -8 -7 -6 -6 -6 -5 -5 -5 ------- Run | Yrd Mat Mat Min Mat Fac Fac Was Fac Fac Ext Cet Maximum Alert Level 2 | . . 1 . . 2 1 . 2 1 . . Low Security (%) 64 | 100 100 69 100 100 82 16 100 13 . 100 100 Level 1 27 | . . 30 . . 12 83 . 42 100 . . Level 2 8 | . . . . . 4 . . 43 . . . Level 3 . | . . . . . . . . . . . . Level 4 . | . . . . . . . . . . . . Level 5 . | . . . . . . . . . . . . High Security . | . . . . . . . . . . . . Max Security . | . . . . . . . . . . . . Peak Influence 611 | 5 40 275 161 79 611 387 75 561 379 144 43 Initial 298 | . . . 91 58 28 298 75 17 268 140 43 Average 164 | . 7 97 117 46 129 290 51 355 321 73 27 Influence Increases 4050 | 10 67 378 100 329 1190 295 . 1142 317 158 64 Destroy 0b10 Robot/C 1500 | . 40 260 80 220 460 60 . 260 120 . . Destroy 0b10 Robot/NC 170 | 10 15 15 . 10 25 5 . 55 30 5 . Destroy Leader 406 | . 12 42 10 62 132 30 . 80 36 2 . Allied During Kill 206 | . . . 10 . 29 . . 166 . 1 . Successful Hack 155 | . . . . 7 78 21 . 4 3 12 30 Disable Machine 285 | . . . . 15 15 . . 180 30 30 15 Destroy Structure 188 | . . 1 . . 16 14 . 97 8 48 4 Partial Spotted 60 | . . . . 15 . 15 . 15 15 . . Lose Combat Pursuer 1080 | . . 60 . . 435 150 . 285 75 60 15 Influence Decreases 4013 | 10 67 143 184 418 641 691 190 618 579 367 105 Entered New Map 1195 | . . . 144 93 34 313 140 8 281 147 35 Time Decay 1978 | 10 67 143 30 205 497 238 50 350 238 110 40 Search Patrol Dispatched 100 | . . . . . . 100 . . . . . Lost Part 460 | . . . 10 80 90 40 . 100 60 50 30 Lost Ally 280 | . . . . 40 20 . . 160 . 60 . Squads Dispatched 30 | . 1 2 . 2 9 2 . 8 3 1 2 Investigation 10 | . . 1 . 1 2 1 . 3 . . 2 Extermination 9 | . . . . . 5 1 . 1 2 . . Reinforcement 8 | . 1 1 . 1 2 . . 1 1 1 . Assault . | . . . . . . . . . . . . Garrison 3 | . . . . . . . . 3 . . . Intercept . | . . . . . . . . . . . . Searches Triggered 1 | . . . . . . 1 . . . . . Construction Impeded . | . . . . . . . . . . . . Haulers Reinforced . | . . . . . . . . . . . . Active Scanning Responses . | . . . . . . . . . . . . Cargo Convoy Interrupts . | . . . . . . . . . . . . Stealth | -11 -10 -9 -9 -8 -7 -6 -6 -6 -5 -5 -5 --------- Run | Yrd Mat Mat Min Mat Fac Fac Was Fac Fac Ext Cet Distress Signals 10 | . 1 3 . 1 1 . . 1 2 . 1 Communications Jammed . | . . . . . . . . . . . . Distress Signals . | . . . . . . . . . . . . Times Spotted 211 | . 11 23 4 19 70 11 . 32 23 7 11 Peak Tracking Total 11 | . 4 6 4 5 11 7 . 9 9 4 11 Tactical Retreats 24 | . . 1 . . 10 3 . 5 2 2 1 Traps | -11 -10 -9 -9 -8 -7 -6 -6 -6 -5 -5 -5 ------- Run | Yrd Mat Mat Min Mat Fac Fac Was Fac Fac Ext Cet Traps Triggered 14 | . . 1 . 1 3 1 . 2 4 2 . Indirectly . | . . . . . . . . . . . . Trap Hack Attempts . | . . . . . . . . . . . . Triggered . | . . . . . . . . . . . . Disarmed . | . . . . . . . . . . . . Reprogrammed 4 | . . . . . . . . 4 . . . Reused . | . . . . . . . . . . . . Traps Extracted . | . . . . . . . . . . . . Installed . | . . . . . . . . . . . . Triggered . | . . . . . . . . . . . . Machines | -11 -10 -9 -9 -8 -7 -6 -6 -6 -5 -5 -5 ---------- Run | Yrd Mat Mat Min Mat Fac Fac Was Fac Fac Ext Cet Machines Disabled 19 | . . . . 1 1 . . 12 2 2 1 Max in Single Turn 2 | . . . . 1 1 . . . 1 2 1 Energy Cycler 1 | . . . . . . . . . . 1 . Machines Repaired . | . . . . . . . . . . . . Machines Dismantled . | . . . . . . . . . . . . Machines Sabotaged . | . . . . . . . . . . . . Overloaded Fab Kills . | . . . . . . . . . . . . Hacking | -11 -10 -9 -9 -8 -7 -6 -6 -6 -5 -5 -5 --------- Run | Yrd Mat Mat Min Mat Fac Fac Was Fac Fac Ext Cet Machines Accessed 35 | . . . . 2 13 5 . 7 3 2 3 Terminals 24 | . . . . 2 9 2 . 4 2 2 3 Fabricators 6 | . . . . . 3 2 . 1 . . . Repair Stations 4 | . . . . . 1 1 . 2 . . . Recycling Units . | . . . . . . . . . . . . Scanalyzers 1 | . . . . . . . . . 1 . . Garrison Access . | . . . . . . . . . . . . Total Hacks 90 | . . . . 6 29 14 . 24 6 4 7 Successful 36 | . . . . 1 11 3 . 12 2 2 5 Failed 53 | . . . . 5 18 11 . 12 3 2 2 Catastrophic 14 | . . . . . 5 3 . 5 . . 1 Database Lockouts 1 | . . . . . . . . . 1 . . Manual 28 | . . . . 2 10 6 . 6 3 . 1 Terminals 61 | . . . . 6 22 6 . 12 4 4 7 Fabricators 14 | . . . . . 6 5 . 3 . . . Repair Stations 13 | . . . . . 1 3 . 9 . . . Recycling Units . | . . . . . . . . . . . . Scanalyzers 2 | . . . . . . . . . 2 . . Garrison Access . | . . . . . . . . . . . . Terminal Hacks 22 | . . . . 1 8 1 . 4 1 2 5 Record 6 | . . . . . . . . 2 . . 4 Part Schematic 1 | . . . . . 1 . . . . . . Robot Schematic 1 | . . . . . 1 . . . . . . Robot Analysis 4 | . . . . 1 3 . . . . . . Prototype ID Bank 2 | . . . . . 1 . . 1 . . . Open Door 4 | . . . . . . . . . 1 2 1 Branch Access Points 2 | . . . . . 1 1 . . . . . Reprogram Traps 1 | . . . . . . . . 1 . . . Hauler Manifests 1 | . . . . . 1 . . . . . . Fabricator Hacks 6 | . . . . . 3 1 . 2 . . . Load Schematic 3 | . . . . . 1 1 . 1 . . . Build 3 | . . . . . 2 . . 1 . . . Repair Station Hacks 7 | . . . . . . 1 . 6 . . . Scan Component 4 | . . . . . . . . 4 . . . Repair 2 | . . . . . . . . 2 . . . Refit 1 | . . . . . . 1 . . . . . Recycling Unit Hacks . | . . . . . . . . . . . . Scanalyzer 1 | . . . . . . . . . 1 . . Retrieve Study 1 | . . . . . . . . . 1 . . Garrison Access Hacks . | . . . . . . . . . . . . Unauthorized Hacks . | . . . . . . . . . . . . Terminals . | . . . . . . . . . . . . Fabricators . | . . . . . . . . . . . . Repair Stations . | . . . . . . . . . . . . Recycling Units . | . . . . . . . . . . . . Scanalyzers . | . . . . . . . . . . . . Garrison Access . | . . . . . . . . . . . . Data Cores Recovered 2 | . . . . . 2 . . . . . . Used . | . . . . . . . . . . . . Hacking Detections 26 | . . . . 1 12 4 . 5 1 1 2 Full Trace Events 6 | . . . . . 2 1 . 1 . . 2 Feedback Events . | . . . . . . . . . . . . Feedback Blocked . | . . . . . . . . . . . . Robot Schematics Acquired 1 | . . . . . 1 . . . . . . Robots Built 6 | . . . . . 4 . . 2 . . . Authchips . | . . . . . . . . . . . . Time 174 | . . . . . 116 . . 58 . . . Total Robot Build Rating 18 | . . . . . 12 . . 6 . . . Part Schematics Acquired 1 | . . . . . 1 . . . . . . Parts Built . | . . . . . . . . . . . . Authchips . | . . . . . . . . . . . . Time . | . . . . . . . . . . . . Total Part Build Rating . | . . . . . . . . . . . . Part Studies Acquired 1 | . . . . . . . . . 1 . . Parts Repaired 2 | . . . . . . . . 2 . . . Time 82 | . . . . . . . . 82 . . . Parts Recycled . | . . . . . . . . . . . . Recycled Matter . | . . . . . . . . . . . . Retrieved Matter . | . . . . . . . . . . . . Retrieved Components . | . . . . . . . . . . . . Parts Scanalyzed . | . . . . . . . . . . . . Part Schematics Acquired . | . . . . . . . . . . . . Parts Damaged . | . . . . . . . . . . . . Bothacking | -11 -10 -9 -9 -8 -7 -6 -6 -6 -5 -5 -5 ------------ Run | Yrd Mat Mat Min Mat Fac Fac Was Fac Fac Ext Cet Used RIF Installer . | . . . . . . . . . . . . Robots Hacked . | . . . . . . . . . . . . Non-combat . | . . . . . . . . . . . . Combat . | . . . . . . . . . . . . Robot Hacks Applied . | . . . . . . . . . . . . Relay Couplers Released 3 | . . . . . . . . . 3 . . Programmers 3 | . . . . . . . . . 3 . . Fabnet Peak Effective % . | . . . . . . . . . . . . Robots Rewired . | . . . . . . . . . . . . Allies Hacked . | . . . . . . . . . . . . Hacks Repelled . | . . . . . . . . . . . . Allies | -11 -10 -9 -9 -8 -7 -6 -6 -6 -5 -5 -5 -------- Run | Yrd Mat Mat Min Mat Fac Fac Was Fac Fac Ext Cet Total Allies 30 | . . . 2 . 4 . 20 2 . 2 . Largest Group 20 | . . . 2 2 4 . 20 11 . 2 . Highest-Rated Group 686 | . . . 41 41 68 . 686 300 . 51 . Highest-Rated Ally 50 | . . . 31 31 21 . 50 50 . 31 . Total Orders 1 | . . . . . . . . . . 1 . EXPLORE 1 | . . . . . . . . . . 1 . Ally Attacks 194 | . . . 6 3 50 . . 135 . . . Total Damage 3693 | . . . 125 42 896 . . 2630 . . . Kills 30 | . . . 3 . 10 . . 17 . . . Allies Corrupted . | . . . . . . . . . . . . Allies Melted . | . . . . . . . . . . . . Intel | -11 -10 -9 -9 -8 -7 -6 -6 -6 -5 -5 -5 ------- Run | Yrd Mat Mat Min Mat Fac Fac Was Fac Fac Ext Cet Active Infowar (turns) 5129 | 47 337 515 74 248 1922 504 113 605 447 223 94 Optics 1104 | . . 465 . . 36 436 . . . 73 94 Sensors 2483 | . . . . . 1886 . . . 447 150 . Terrain 763 | . . . . . . 204 113 446 . . . Structural 452 | . . 452 . . . . . . . . . Seismic 1221 | 47 337 515 74 248 . . . . . . . Cloaking 182 | . . . . . . . . 182 . . . Jamming 213 | . . . . . . 68 113 32 . . . Robot Analysis Total 4 | . . . . 1 3 . . . . . . Derelict Logs Recovered . | . . . . . . . . . . . . Drone Launches 4 | . . . . . . . . . . 4 . Drone Recoveries 1 | . . . . . . . . . . 1 . Exploration | -11 -10 -9 -9 -8 -7 -6 -6 -6 -5 -5 -5 ------------- Run | Yrd Mat Mat Min Mat Fac Fac Was Fac Fac Ext Cet Turns Passed 6577 | 161 337 515 74 504 2526 504 113 924 513 312 94 Spaces Moved 5371 | 88 211 248 39 316 2074 521 120 716 509 411 118 Core 509 | 4 . . 1 . 86 42 3 . . 255 118 Treads 315 | 84 38 135 13 . 32 . . 13 . . . Legs 972 | . 173 113 . 101 574 . 3 8 . . . Wheels 830 | . . . . . 830 . . . . . . Hover 1774 | . . . 25 215 552 479 114 389 . . . Flight 971 | . . . . . . . . 306 509 156 . Fastest Speed 31 | 50 120 120 116 48 50 50 76 31 49 34 50 Average Speed 91 | 155 127 151 131 84 98 73 88 92 58 59 50 Slowest Speed 350 | 160 190 240 160 190 350 80 250 176 77 200 50 Overloaded Moves . | . . . . . . . . . . . . Propulsion Burnouts . | . . . . . . . . . . . . Robots Hopped 1 | . . . . . . . . 1 . . . Potential Cave-ins 7 | . . . . . . . . . . 4 3 Cave-ins Triggered . | . . . . . . . . . . . . Exploration Rate (%) 31 | 4 31 21 9 18 48 14 71 24 16 55 69 Regions Visited 11 Branch Regions 3 Pre-discovered Areas . | . . . . . . . . . . . . Known Exits Taken 4 | . . . . . 1 . . 1 1 1 . Unknown Exits Taken 5 | 1 1 1 1 1 . . . . . . . Scrap Searched . | . . . . . . . . . . . . Spaces Dug 44 | . . . . . . 14 . 15 4 6 5 Terrain Destroyed 107 | . . . . . 20 14 . 32 4 32 5 Melee 44 | . . . . . . 14 . 15 4 6 5 Projectile . | . . . . . . . . . . . . AOE 63 | . . . . . 20 . . 17 . 26 . Terrain Rammed . | . . . . . . . . . . . . Walls Destroyed . | . . . . . . . . . . . . Machines Disabled . | . . . . . . . . . . . . Actions | -11 -10 -9 -9 -8 -7 -6 -6 -6 -5 -5 -5 --------- Run | Yrd Mat Mat Min Mat Fac Fac Was Fac Fac Ext Cet Total 6446 | 101 239 325 55 428 2448 598 127 896 638 459 132 Wait 395 | . . . 13 9 227 30 . 101 15 . . Move 5359 | 87 210 247 38 315 2073 521 119 713 508 410 118 Hop 1 | . . . . . . . . 1 . . . Pick Up 50 | 3 4 11 . 6 10 3 1 5 5 2 . Fast Attach 60 | 7 . 3 . 8 11 7 2 15 4 3 . Attach 29 | . . 4 1 4 6 4 . 5 4 1 . Detach 11 | . . 5 . . 2 1 . 1 1 1 . Swap 68 | . 4 9 . 11 26 5 . 9 4 . . Drop 65 | . 1 12 . 2 30 1 3 9 7 . . Fire 194 | 4 19 33 3 73 62 . . . . . . Melee 134 | . . . . . . 26 . 37 45 12 14 Ram 1 | . . . . . 1 . . . . . . Kick 1 | . 1 . . . . . . . . . . Crush 1 | . . 1 . . . . . . . . . Escape Stasis 75 | . . . . . . . . . 45 30 . Rewire 2 | . . . . . . . 2 . . . . Trap . | . . . . . . . . . . . . Miscellaneous . | . . . . . . . . . . . . Route ------- -11/Scrapyard -10/Materials -9/Materials -9/Mines (discovered 2 exits: *Mat / [*Exi]) -8/Materials -7/Factory (discovered 3 exits: *Fac / Low x2) -6/Factory (discovered 2 exits: Low x2) -6/Waste -6/Factory -5/Factory -5/Extension (discovered 2 exits: *Fac / *Cet) -5/Cetus History --------- Turn | Location | Event 3 | -11/Scrapyard | Discovered new exit (range 16) 162 | -11/Scrapyard | Entered Materials 486 | -10/Materials | Discovered new exit (range 9) 499 | -10/Materials | Entered another Materials area 499 | -9/Materials | Evolved 2 slots: Utility x2 793 | -9/Materials | Build established: Scavenger-Mutant 991 | -9/Materials | Discovered new exit (range 6) 1014 | -9/Materials | Entered Mines 1039 | -9/Mines | Discovered new exit (range 10) 1077 | -9/Mines | Deemed a non-threat by the Exiles lab entrance 1078 | -9/Mines | Discovered new exit (range 5) 1088 | -9/Mines | Entered Materials 1088 | -8/Materials | Accompanied by 2 allies 1088 | -8/Materials | Evolved 2 slots: Propulsion x2 1093 | -8/Materials | Led the pair of lost Derelicts to an unsafe place 1208 | -8/Materials | Build established: Mutant 1398 | -8/Materials | Lost 4 parts (2n1u1w) 1575 | -8/Materials | Discovered new exit (range 7) 1592 | -8/Materials | Entered Factory 1592 | -7/Factory | Evolved 2 slots: Utility x2 1674 | -7/Factory | Build established: Scavenger-Mutant 1697 | -7/Factory | Fabricated W-25 Informer (x2) 2199 | -7/Factory | Fabricated H-55 Commando (x2) 2494 | -7/Factory | P-60 Hacker assimilated allied Commando 4b 2826 | -7/Factory | Build established: Mutant 3033 | -7/Factory | Identified exit to Lower Caves 3248 | -7/Factory | Build established: Hacker-Mutant 4107 | -7/Factory | Lost 4 parts (1p1n1u1w) 4115 | -7/Factory | Discovered new exit (range 6) 4118 | -7/Factory | Identified exit to Factory 4118 | -7/Factory | Entered another Factory area 4118 | -6/Factory | Evolved 2 slots: Utility x2 4468 | -6/Factory | Search patrols dispatched 4496 | -6/Factory | Lost 3 parts (2n1w) 4596 | -6/Factory | Identified exit to Lower Caves 4622 | -6/Factory | Sucked down chute 4622 | -6/Factory | Entered Waste 4623 | -6/Waste | Joined by Warlord forces that had cleared the area 4692 | -6/Waste | Discovered new exit (range 15) 4734 | -6/Waste | Identified exit to Factory 4735 | -6/Waste | Entered Factory 4735 | -6/Factory | Accompanied by 11 allies 4856 | -6/Factory | Garrison activated, responded to threat 4907 | -6/Factory | Fabricated H-55 Commando (x2) 4996 | -6/Factory | Repaired Imp. Propulsion Shielding 5042 | -6/Factory | Repaired Gravmag System 5062 | -6/Factory | Spotted B-75 Beast 5107 | -6/Factory | Lost 4 allies 5154 | -6/Factory | Build established: Hacker-Gladiator 5176 | -6/Factory | Found Prototype Processor 5176 | -6/Factory | Identified Exp. Targeting Computer 5394 | -6/Factory | Lost 7 parts (1p2n3u1w) 5402 | -6/Factory | Core integrity fell below 50% 5631 | -6/Factory | Discovered new exit (range 14) 5658 | -6/Factory | Identified exit to Factory 5659 | -6/Factory | Entered another Factory area 5659 | -5/Factory | Evolved 2 slots: Propulsion x2 5829 | -5/Factory | Central database locked down 6166 | -5/Factory | Discovered new exit (range 10) 6171 | -5/Factory | Identified exit to Extension 6172 | -5/Factory | Entered Extension 6177 | -5/Extension | Lost 5 parts (2n2u1w) 6303 | -5/Extension | Spotted B-75 Beast 6309 | -5/Extension | Spotted B-75 Beast 6331 | -5/Extension | Core integrity fell below 50% 6356 | -5/Extension | Lost 8 parts (1p4n3u) 6368 | -5/Extension | Discovered new exit (range 16) 6369 | -5/Extension | Discovered new exit (range 15) 6396 | -5/Extension | Rescued a captive Derelict 6400 | -5/Extension | Rescued a captive Derelict 6428 | -5/Extension | Energy Cycler disabled 6428 | -5/Extension | Rescued a captive Derelict 6428 | -5/Extension | Rescued a captive Derelict 6428 | -5/Extension | Rescued a captive Derelict 6428 | -5/Extension | Rescued a captive Derelict 6429 | -5/Extension | Rescued a captive Derelict 6429 | -5/Extension | Rescued a captive Derelict 6430 | -5/Extension | Rescued a captive Derelict 6430 | -5/Extension | Rescued a captive Derelict 6432 | -5/Extension | Rescued a captive Derelict 6432 | -5/Extension | Rescued a captive Derelict 6433 | -5/Extension | Rescued a captive Derelict 6445 | -5/Extension | Rescued a captive Derelict 6481 | -5/Extension | Identified exit to Cetus 6482 | -5/Extension | Identified exit to Factory 6484 | -5/Extension | Entered Cetus 6491 | -5/Cetus | Spotted Cetus Guard 6491 | -5/Cetus | Spotted Cetus Guard 6492 | -5/Cetus | Spotted Cetus Guard 6512 | -5/Cetus | Spotted Cetus Guard 6513 | -5/Cetus | Core integrity fell below 20% 6539 | -5/Cetus | Cetus Manufacturing Module disabled 6565 | -5/Cetus | Lost 3 parts (1n2u) 6578 | -5/Cetus | Destroyed by Cetus Guard with Advanced KE Penetrator Last Messages --------------- >>Query(Dr. REDACTED) REDACTED. 06525_ ALERT: Suspicious activity at Terminal C002. Dispatching Investigation squad. 06527_ System corrupted: Matter fused (-5). 06534_ Adv. Melee Analysis Suite destroyed. 06534_ Penetrated by Slug. 06534_ Machine disabled. 06537_ Penetrated by Slug. 06539_ Connecting with Cetus Manufacturing Controls... 06539_ Slug penetrates Cetus Manufacturing Module. 06539_ Cetus Manufacturing Module disabled. 06540_ Penetrated by Slug. 06542_ Connecting with Cetus Terminal... >>Open(Door) Sealed Heavy Doors opened. 06549_ Cetus Mainframe disabled. 06575_ Penetrated by Slug. Map ----- +----------------------------------------------------+ | ?????????????????????????????????????????????????? | | ?????????????????????????????????????????????????? | | ?????????????????????????????????????????????????? | | ?????????????????????????????????????????????????? | | ?????????????????????????????????????????????????? | | ?????????????????????????????????????????????????? | | ?????????????????????????????????????????????????? | | ?????????????????????????????????????????????????? | | ?????????????????????????????????????????????????? | | ?????????????#???????????????????????????????????? | | ????????????" """ ?"???##????????????????????????? | | ???????# " """"""" " #""???????????????????????? | | ???????#"""""""""""""""#"######??????????????????? | | ???????#""""" """ """""#""""""#??????????????????? | | ???????#""""""" """""""#" ""#??????????????????? | | #??????#""" " " """#T ""#??????????????????? | | ######?#" """ "" "#" ""#??????????????????? | | ## ### #??????????????????? | | + +??????????????????? | | + +??????????????????? | | + +??????????????????? | | ## ###" #??????????????????? | | ?#####?#" "" """""""#TY #??????????????????? | | ???????######++############Y #######????????????? | | ???????#" " ""# Y #????????????? | | ???????###" """# " @g g #????????????? | | ???????#" " ""# """""" " " #????????????? | | ???????###" """# " " " """g#????????????? | | ???????#" "### """""" " #????????????? | | ???????#" """"#" gg """""" #????????????? | | ???????#" T"""#""""""" g "#????????????? | | ???????#" """"#" """"""""""""#????????????? | | ???????### "### """"""" "#????????????? | | ???????# """"#" """"""" #????????????? | | ???????#" " T"""#""""""""" #????????????? | | ???????#" """"#" " " "#????????????? | | ???????#" " " #"### " """""""""#????????????? | | ???????# #""?# """ "#????????????? | | ???????#""" """#"""# " #????????????? | | ???????#########???#####??###########????????????? | | ?????????????????????????????????????????????????? | | ?????????????????????????????????????????????????? | | ?????????????????????????????????????????????????? | | ?????????????????????????????????????????????????? | | ?????????????????????????????????????????????????? | | ?????????????????????????????????????????????????? | | ?????????????????????????????????????????????????? | | ?????????????????????????????????????????????????? | | | | | +----------------------------------------------------+ Best States ------------- Heat Dissipation 53 Energy Generation 19 Energy Capacity 315 Matter Stores 300 Matter Capacity 300 Sight Range 20 Robot Scan Range 15 Terrain Scan Range 20 Terrain Scan Density 10 Jamming Range 12 Cloak Strength 2 Additional Mass Support 9 Corruption Containment 8 Corruption Block 15 Armor Coverage 375 Core Shielding 20 Propulsion Shielding 66 Weapon Shielding 66 Evasion (%) 60 Targeting Accuracy 12 Melee Accuracy 24 Recoil Reduction 2 Offensive Hacking 10 Defensive Hacking 30 Item Schematics ----------------- Imp. Medium Treads | -7/Factory | Hacked Robot Schematics ------------------ H-55 Commando | -7/Factory | Hacked Fabricated ------------ W-25 Informer | x2 | -7/Factory | Preloaded H-55 Commando | x2 | -7/Factory H-55 Commando | x2 | -6/Factory Repaired ---------- Imp. Propulsion Shielding | 35% | -6/Factory Gravmag System | 48% | -6/Factory Studied --------- Greatsword | -5/Factory | Hacked Alien Tech Used ----------------- None Achievements -------------- None Challenges ------------ None Game ------ Seed DroneBlinkProtomatter Manual? 0 Play Time 01:30:17 Cumulative 65.6 hours Start 2026.06.28 @ 09:52:31 End 2026.06.29 @ 07:21:41 Sessions 3 Manual Loads 0 Difficulty Rogue Special Mode None Game No. 75 Rogue 59 Adventurer 16 Explorer 0 Win Type - Total 1 Types 1/0/0/0/0/0/0/0/0/0 Lore% 51 Gallery% 48 Achievement% 34 Wizard Run 0 Options --------- Layout 1 ASCII 0 Keyboard 1 Movement Vi Keybinds 0 Fullscreen 1 Font 24/Tamsyn Map View 50x35 Zoom Use 0% Tactical HUD 1 Map Filters NONE Filters NONE Steam 1 RUN: 3472e772-5c2d-4667-827b-da4a96df36ee